{"text_format":"1","workbook":"xlsx","n_sheets":3,"sheets":["Data","Sheet2","Sheet3"],"not_rendered":{"charts":1,"images":0,"macros":1,"external_links":0,"defined_names":2,"comments":0,"pivot_tables":1},"unopened":[],"bounds":{"document_bytes":16777216,"sheet_cells":100000,"rows_first":2000,"rows_last":500,"rows_between":2000,"halvings":0,"cell_chars":16384,"cell_head_chars":4096},"cells_cut":0,"cells_raw":0,"read":"whole","date_system":"1900"}

{"sheet":"Data","index":0,"n_rows":77,"n_cols":6,"rows_kept":77,"cut":false,"hidden":false,"merged":[]}
[null,"fix"]
[null,{"$f":"RANDBETWEEN(5,30)","v":25}]
[]
[null,"NName","Amt",null,"Row Labels","Sum of Amt"]
[null,{"$f":"INDEX(LstNm,RANDBETWEEN(1,fix))","v":"Walker"},{"$f":"RANDBETWEEN(1000,9999)/100","v":66.12},null,"Davis",73.92]
[null,{"$f":"INDEX(LstNm,RANDBETWEEN(1,fix))","v":"Jackson"},{"$f":"RANDBETWEEN(1000,9999)/100","v":69.55},null,"Johnson",138.94999999999999]
[null,{"$f":"INDEX(LstNm,RANDBETWEEN(1,fix))","v":"Martinez"},70.069999999999993,null,"Jones",56.4]
[null,{"$f":"INDEX(LstNm,RANDBETWEEN(1,fix))","v":"Robinson"},44.03,null,"Miller",99.33]
[null,{"$f":"INDEX(LstNm,RANDBETWEEN(1,fix))","v":"Garcia"},41.48,null,"Moore",199.76999999999998]
[null,{"$f":"INDEX(LstNm,RANDBETWEEN(1,fix))","v":"Clark"},86.26,null,"Smith",51.519999999999996]
[null,{"$f":"INDEX(LstNm,RANDBETWEEN(1,fix))","v":"Lee"},26.17,null,"Taylor",176.01000000000002]
[null,{"$f":"INDEX(LstNm,RANDBETWEEN(1,fix))","v":"Brown"},43.66,null,"Williams",108.94]
[null,{"$f":"INDEX(LstNm,RANDBETWEEN(1,fix))","v":"Moore"},88.17,null,"Wilson",264.76]
[null,{"$f":"INDEX(LstNm,RANDBETWEEN(1,fix))","v":"Jackson"},82.44,null,"Thomas",31.86]
[null,{"$f":"INDEX(LstNm,RANDBETWEEN(1,fix))","v":"White"},12.8,null,"Anderson",356.97999999999996]
[null,{"$f":"INDEX(LstNm,RANDBETWEEN(1,fix))","v":"Harris"},15.34,null,"Thompson",316.17]
[null,{"$f":"INDEX(LstNm,RANDBETWEEN(1,fix))","v":"Johnson"},99.09,null,"Harris",163.35000000000002]
[null,{"$f":"INDEX(LstNm,RANDBETWEEN(1,fix))","v":"Jones"},14.88,null,"Jackson",170.04000000000002]
[null,{"$f":"INDEX(LstNm,RANDBETWEEN(1,fix))","v":"Jackson"},87.42,null,"Garcia",187.43]
[null,{"$f":"INDEX(LstNm,RANDBETWEEN(1,fix))","v":"Thomas"},82.52,null,"White",266.19]
[null,{"$f":"INDEX(LstNm,RANDBETWEEN(1,fix))","v":"Walker"},57.87,null,"Martinez",285.54000000000002]
[null,{"$f":"INDEX(LstNm,RANDBETWEEN(1,fix))","v":"Thomas"},23.18,null,"Martin",125.19999999999999]
[null,{"$f":"INDEX(LstNm,RANDBETWEEN(1,fix))","v":"Clark"},55.09,null,"Robinson",90.25]
[null,{"$f":"INDEX(LstNm,RANDBETWEEN(1,fix))","v":"Lee"},49.75,null,"Rodriguez",155.43]
[null,{"$f":"INDEX(LstNm,RANDBETWEEN(1,fix))","v":"Martinez"},23.46,null,"Hall",26.06]
[null,{"$f":"INDEX(LstNm,RANDBETWEEN(1,fix))","v":"Jackson"},99.57,null,"Walker",179.69]
[null,{"$f":"INDEX(LstNm,RANDBETWEEN(1,fix))","v":"Robinson"},49.11,null,"Lee",328.59000000000003]
[null,{"$f":"INDEX(LstNm,RANDBETWEEN(1,fix))","v":"Harris"},91.84,null,"Clark",93.18]
[null,{"$f":"INDEX(LstNm,RANDBETWEEN(1,fix))","v":"Wilson"},44,null,"Lewis",77.59]
[null,{"$f":"INDEX(LstNm,RANDBETWEEN(1,fix))","v":"Thompson"},10.48,null,"Grand Total",4023.1499999999996]
[null,{"$f":"INDEX(LstNm,RANDBETWEEN(1,fix))","v":"Taylor"},94.03]
[null,{"$f":"INDEX(LstNm,RANDBETWEEN(1,fix))","v":"Harris"},70.55]
[null,{"$f":"INDEX(LstNm,RANDBETWEEN(1,fix))","v":"Martinez"},98.94]
[null,{"$f":"INDEX(LstNm,RANDBETWEEN(1,fix))","v":"Miller"},66.41]
[null,{"$f":"INDEX(LstNm,RANDBETWEEN(1,fix))","v":"Taylor"},95.03]
[null,{"$f":"INDEX(LstNm,RANDBETWEEN(1,fix))","v":"Garcia"},51.58]
[null,{"$f":"INDEX(LstNm,RANDBETWEEN(1,fix))","v":"Robinson"},40.770000000000003]
[null,{"$f":"INDEX(LstNm,RANDBETWEEN(1,fix))","v":"Wilson"},17.96]
[null,{"$f":"INDEX(LstNm,RANDBETWEEN(1,fix))","v":"Lee"},29.68]
[null,{"$f":"INDEX(LstNm,RANDBETWEEN(1,fix))","v":"Miller"},68.400000000000006]
[null,{"$f":"INDEX(LstNm,RANDBETWEEN(1,fix))","v":"Brown"},17.079999999999998]
[null,{"$f":"INDEX(LstNm,RANDBETWEEN(1,fix))","v":"Garcia"},23.35]
[null,{"$f":"INDEX(LstNm,RANDBETWEEN(1,fix))","v":"Rodriguez"},92.91]
[null,{"$f":"INDEX(LstNm,RANDBETWEEN(1,fix))","v":"Moore"},86.11]
[null,{"$f":"INDEX(LstNm,RANDBETWEEN(1,fix))","v":"Martinez"},27.49]
[null,{"$f":"INDEX(LstNm,RANDBETWEEN(1,fix))","v":"Jackson"},49.56]
[null,{"$f":"INDEX(LstNm,RANDBETWEEN(1,fix))","v":"Martin"},99.6]
[null,{"$f":"INDEX(LstNm,RANDBETWEEN(1,fix))","v":"Garcia"},64.319999999999993]
[null,{"$f":"INDEX(LstNm,RANDBETWEEN(1,fix))","v":"Robinson"},22.45]
[null,{"$f":"INDEX(LstNm,RANDBETWEEN(1,fix))","v":"Brown"},12.5]
[null,{"$f":"INDEX(LstNm,RANDBETWEEN(1,fix))","v":"Rodriguez"},63.72]
[null,{"$f":"INDEX(LstNm,RANDBETWEEN(1,fix))","v":"Moore"},43.33]
[null,{"$f":"INDEX(LstNm,RANDBETWEEN(1,fix))","v":"Smith"},87.46]
[null,{"$f":"INDEX(LstNm,RANDBETWEEN(1,fix))","v":"Garcia"},56.61]
[null,{"$f":"INDEX(LstNm,RANDBETWEEN(1,fix))","v":"Walker"},86.35]
[null,{"$f":"INDEX(LstNm,RANDBETWEEN(1,fix))","v":"Martin"},65.88]
[null,{"$f":"INDEX(LstNm,RANDBETWEEN(1,fix))","v":"Jackson"},56.85]
[null,{"$f":"INDEX(LstNm,RANDBETWEEN(1,fix))","v":"Williams"},16.62]
[null,{"$f":"INDEX(LstNm,RANDBETWEEN(1,fix))","v":"Smith"},55.31]
[null,{"$f":"INDEX(LstNm,RANDBETWEEN(1,fix))","v":"Smith"},17.21]
[null,{"$f":"INDEX(LstNm,RANDBETWEEN(1,fix))","v":"Smith"},95.94]
[null,{"$f":"INDEX(LstNm,RANDBETWEEN(1,fix))","v":"Garcia"},95.62]
[null,{"$f":"INDEX(LstNm,RANDBETWEEN(1,fix))","v":"Johnson"},22.05]
[null,{"$f":"INDEX(LstNm,RANDBETWEEN(1,fix))","v":"Lee"},95.71]
[null,{"$f":"INDEX(LstNm,RANDBETWEEN(1,fix))","v":"Robinson"},11.63]
[null,{"$f":"INDEX(LstNm,RANDBETWEEN(1,fix))","v":"Lee"},68.08]
[null,{"$f":"INDEX(LstNm,RANDBETWEEN(1,fix))","v":"Moore"},92.2]
[null,{"$f":"INDEX(LstNm,RANDBETWEEN(1,fix))","v":"Clark"},62.68]
[null,{"$f":"INDEX(LstNm,RANDBETWEEN(1,fix))","v":"Garcia"},87.54]
[null,{"$f":"INDEX(LstNm,RANDBETWEEN(1,fix))","v":"Jones"},{"$f":"RANDBETWEEN(1000,9999)/100","v":75.62}]
[null,{"$f":"INDEX(LstNm,RANDBETWEEN(1,fix))","v":"Walker"},45.7]
[null,{"$f":"INDEX(LstNm,RANDBETWEEN(1,fix))","v":"Williams"},55.9]
[null,{"$f":"INDEX(LstNm,RANDBETWEEN(1,fix))","v":"Thomas"},82.12]
[null,{"$f":"INDEX(LstNm,RANDBETWEEN(1,fix))","v":"Thomas"},47.85]
[null,{"$f":"INDEX(LstNm,RANDBETWEEN(1,fix))","v":"Thomas"},24.55]
[null,{"$f":"INDEX(LstNm,RANDBETWEEN(1,fix))","v":"White"},38.69]
[null,{"$f":"INDEX(LstNm,RANDBETWEEN(1,fix))","v":"Clark"},44.76]

{"sheet":"Sheet2","index":1,"n_rows":0,"n_cols":0,"rows_kept":0,"cut":false,"hidden":false,"merged":[]}

{"sheet":"Sheet3","index":2,"n_rows":0,"n_cols":0,"rows_kept":0,"cut":false,"hidden":false,"merged":[]}